[Event "Titled Tuesday Blitz November 22 Late 2022"]
[White "Lobanov, Sergei"]
[Black "Przybylski, Wojciech"]
[WhiteFideId "24183750"]
[BlackFideId "1117599"]
[WhiteElo "2510"]
[BlackElo "2221"]
[Result "1-0"]
[Round "01"]
[TimeControl "180+1"]
[Date "2022.11.23"]
[WhiteClock "0:00:01"]
[BlackClock "0:00:02"]

1. e4 {[%clk 0:02:59]}  e5 {[%clk 0:02:59]} 2. Nf3 {[%clk 0:02:59]}  Nc6 {[%clk 0:02:58]} 3. Bb5 {[%clk 0:03:00]}  Nf6 {[%clk 0:02:58]} 4. d3 {[%clk 0:03:00]}  d6 {[%clk 0:02:55]} 5. O-O {[%clk 0:02:58]}  Be7 {[%clk 0:02:55]} 6. c3 {[%clk 0:02:58]}  O-O {[%clk 0:02:54]} 7. Re1 {[%clk 0:02:58]}  Bg4 {[%clk 0:02:53]} 8. h3 {[%clk 0:02:58]}  Bh5 {[%clk 0:02:53]} 9. Nbd2 {[%clk 0:02:58]}  Nb8 {[%clk 0:02:52]} 10. Nf1 {[%clk 0:02:56]}  c6 {[%clk 0:02:51]} 11. Ba4 {[%clk 0:02:56]}  Nbd7 {[%clk 0:02:51]} 12. Ng3 {[%clk 0:02:56]}  Bg6 {[%clk 0:02:50]} 13. Nh4 {[%clk 0:02:50]}  Re8 {[%clk 0:02:48]} 14. Ngf5 {[%clk 0:02:44]}  Bf8 {[%clk 0:02:47]} 15. Qf3 {[%clk 0:02:36]}  Nc5 {[%clk 0:02:42]} 16. Bc2 {[%clk 0:02:36]}  Ne6 {[%clk 0:02:41]} 17. a4 {[%clk 0:02:33]}  a5 {[%clk 0:02:38]} 18. Be3 {[%clk 0:02:28]}  d5 {[%clk 0:02:32]} 19. Rad1 {[%clk 0:02:22]}  Qc7 {[%clk 0:02:25]} 20. Bc1 {[%clk 0:02:19]}  Rad8 {[%clk 0:02:22]} 21. Ne3 {[%clk 0:02:00]}  Nf4 {[%clk 0:02:03]} 22. Ng4 {[%clk 0:01:48]}  Nxg4 {[%clk 0:01:52]} 23. hxg4 {[%clk 0:01:48]}  dxe4 {[%clk 0:01:41]} 24. dxe4 {[%clk 0:01:47]}  Bc5 {[%clk 0:01:35]} 25. Nf5 {[%clk 0:01:31]}  Ne6 {[%clk 0:01:32]} 26. g5 {[%clk 0:01:25]}  Nf4 {[%clk 0:01:11]} 27. Rxd8 {[%clk 0:00:54]}  Rxd8 {[%clk 0:01:11]} 28. Kh2 {[%clk 0:00:48]}  Bh5 {[%clk 0:00:56]} 29. Qg3 {[%clk 0:00:48]}  Qb6 {[%clk 0:00:44]} 30. Ne3 {[%clk 0:00:36]}  Qc7 {[%clk 0:00:36]} 31. Qh4 {[%clk 0:00:34]}  Bg6 {[%clk 0:00:31]} 32. g3 {[%clk 0:00:34]}  Ne6 {[%clk 0:00:30]} 33. Kg2 {[%clk 0:00:33]}  Qb6 {[%clk 0:00:28]} 34. Qg4 {[%clk 0:00:33]}  Re8 {[%clk 0:00:27]} 35. Rd1 {[%clk 0:00:31]}  Qc7 {[%clk 0:00:25]} 36. Bb3 {[%clk 0:00:27]}  Bf8 {[%clk 0:00:21]} 37. Ba2 {[%clk 0:00:25]}  Nc5 {[%clk 0:00:20]} 38. Nf5 {[%clk 0:00:21]}  Nxa4 {[%clk 0:00:19]} 39. Rd7 {[%clk 0:00:21]}  Qc8 {[%clk 0:00:16]} 40. Nh4 {[%clk 0:00:20]}  Nc5 {[%clk 0:00:14]} 41. Nxg6 {[%clk 0:00:06]}  Qxd7 {[%clk 0:00:14]} 42. Qxd7 {[%clk 0:00:05]}  Nxd7 {[%clk 0:00:15]} 43. Nh4 {[%clk 0:00:03]}  Nc5 {[%clk 0:00:14]} 44. f3 {[%clk 0:00:02]}  Nd3 {[%clk 0:00:13]} 45. Be3 {[%clk 0:00:02]}  Nxb2 {[%clk 0:00:13]} 46. Nf5 {[%clk 0:00:03]}  Na4 {[%clk 0:00:13]} 47. c4 {[%clk 0:00:02]}  Nc3 {[%clk 0:00:13]} 48. Bb3 {[%clk 0:00:03]}  a4 {[%clk 0:00:13]} 49. Bc2 {[%clk 0:00:04]}  a3 {[%clk 0:00:13]} 50. Bd2 {[%clk 0:00:04]}  Bb4 {[%clk 0:00:13]} 51. Bb3 {[%clk 0:00:04]}  a2 {[%clk 0:00:13]} 52. Bxc3 {[%clk 0:00:04]}  Bxc3 {[%clk 0:00:13]} 53. Bxa2 {[%clk 0:00:05]}  Rd8 {[%clk 0:00:12]} 54. Bb3 {[%clk 0:00:03]}  Rd2+ {[%clk 0:00:12]} 55. Kh3 {[%clk 0:00:04]}  Kf8 {[%clk 0:00:12]} 56. c5 {[%clk 0:00:04]}  Bb4 {[%clk 0:00:11]} 57. Nd6 {[%clk 0:00:04]}  Bxc5 {[%clk 0:00:11]} 58. Nxb7 {[%clk 0:00:04]}  Be7 {[%clk 0:00:11]} 59. Na5 {[%clk 0:00:03]}  Rd3 {[%clk 0:00:10]} 60. Kg4 {[%clk 0:00:02]}  Bb4 {[%clk 0:00:07]} 61. Bc4 {[%clk 0:00:02]}  Rd6 {[%clk 0:00:06]} 62. Nb3 {[%clk 0:00:02]}  f6 {[%clk 0:00:05]} 63. gxf6 {[%clk 0:00:01]}  Rxf6 {[%clk 0:00:05]} 64. Bd3 {[%clk 0:00:01]}  Be7 {[%clk 0:00:04]} 65. Bc4 {[%clk 0:00:01]}  Rg6+ {[%clk 0:00:04]} 66. Kh3 {[%clk 0:00:01]}  Rh6+ {[%clk 0:00:03]} 67. Kg2 {[%clk 0:00:02]}  Rd6 {[%clk 0:00:03]} 68. Na5 {[%clk 0:00:02]}  Rd4 {[%clk 0:00:03]} 69. Be6 {[%clk 0:00:02]}  Rd6 {[%clk 0:00:02]} 70. Bc4 {[%clk 0:00:02]}  Rd2+ {[%clk 0:00:02]} 71. Kh3 {[%clk 0:00:02]}  c5 {[%clk 0:00:02]} 72. Bd5 {[%clk 0:00:02]}  h5 {[%clk 0:00:02]} 73. Nc4 {[%clk 0:00:01]} 1-0


[Site "https://www.chess.com"]

[Event "Titled Tuesday Blitz November 22 Late 2022"]
[White "Lopez Gracia, Fernando"]
[Black "Steinberg, Nitzan"]
[WhiteFideId "2207184"]
[BlackFideId "2801795"]
[WhiteElo "2478"]
[BlackElo "2491"]
[Result "0-1"]
[Round "01"]
[TimeControl "180+1"]
[Date "2022.11.23"]
[WhiteClock "0:00:32"]
[BlackClock "0:01:19"]

1. c4 {[%clk 0:02:58]}  Nf6 {[%clk 0:02:58]} 2. Nc3 {[%clk 0:02:58]}  g6 {[%clk 0:02:59]} 3. e4 {[%clk 0:02:58]}  d6 {[%clk 0:02:58]} 4. d3 {[%clk 0:02:58]}  Bg7 {[%clk 0:02:58]} 5. g3 {[%clk 0:02:57]}  c5 {[%clk 0:02:58]} 6. Bg2 {[%clk 0:02:57]}  Nc6 {[%clk 0:02:59]} 7. Nge2 {[%clk 0:02:58]}  O-O {[%clk 0:02:59]} 8. O-O {[%clk 0:02:58]}  Ne8 {[%clk 0:03:00]} 9. h3 {[%clk 0:02:57]}  Nc7 {[%clk 0:03:00]} 10. Be3 {[%clk 0:02:57]}  Ne6 {[%clk 0:02:59]} 11. Qd2 {[%clk 0:02:55]}  Ned4 {[%clk 0:02:58]} 12. f4 {[%clk 0:02:54]}  Rb8 {[%clk 0:02:57]} 13. Kh2 {[%clk 0:02:54]}  a6 {[%clk 0:02:57]} 14. Rac1 {[%clk 0:02:50]}  b5 {[%clk 0:02:57]} 15. b3 {[%clk 0:02:51]}  Qa5 {[%clk 0:02:54]} 16. Rf2 {[%clk 0:02:42]}  Bb7 {[%clk 0:02:49]} 17. Nd5 {[%clk 0:02:38]}  Qxd2 {[%clk 0:02:46]} 18. Bxd2 {[%clk 0:02:39]}  Rfe8 {[%clk 0:02:39]} 19. Be3 {[%clk 0:02:24]}  b4 {[%clk 0:02:35]} 20. Bd2 {[%clk 0:01:50]}  a5 {[%clk 0:02:34]} 21. Rcf1 {[%clk 0:01:46]}  Nxe2 {[%clk 0:02:28]} 22. Rxe2 {[%clk 0:01:45]}  Nd4 {[%clk 0:02:29]} 23. Ree1 {[%clk 0:01:40]}  Bc6 {[%clk 0:02:27]} 24. Be3 {[%clk 0:01:36]}  Nc2 {[%clk 0:02:25]} 25. Re2 {[%clk 0:01:37]}  Nxe3 {[%clk 0:02:25]} 26. Rxe3 {[%clk 0:01:38]}  a4 {[%clk 0:02:25]} 27. f5 {[%clk 0:01:35]}  Bd4 {[%clk 0:02:14]} 28. Ref3 {[%clk 0:01:35]}  f6 {[%clk 0:02:11]} 29. fxg6 {[%clk 0:01:31]}  hxg6 {[%clk 0:02:11]} 30. h4 {[%clk 0:01:31]}  Kg7 {[%clk 0:02:10]} 31. Bh3 {[%clk 0:01:32]}  Rh8 {[%clk 0:02:06]} 32. Nc7 {[%clk 0:01:32]}  Be5 {[%clk 0:02:00]} 33. Kg2 {[%clk 0:01:31]}  Rb7 {[%clk 0:01:56]} 34. Ne6+ {[%clk 0:01:28]}  Kf7 {[%clk 0:01:50]} 35. Ng5+ {[%clk 0:01:18]}  Ke8 {[%clk 0:01:50]} 36. Ne6 {[%clk 0:01:18]}  Ra7 {[%clk 0:01:49]} 37. Nf4 {[%clk 0:00:56]}  Kf7 {[%clk 0:01:43]} 38. Be6+ {[%clk 0:00:55]}  Kg7 {[%clk 0:01:43]} 39. Bd5 {[%clk 0:00:55]}  Bd7 {[%clk 0:01:39]} 40. Be6 {[%clk 0:00:36]}  Be8 {[%clk 0:01:30]} 41. Nd5 {[%clk 0:00:37]}  Kf8 {[%clk 0:01:24]} 42. Kh3 {[%clk 0:00:33]}  axb3 {[%clk 0:01:23]} 43. axb3 {[%clk 0:00:33]}  Ra3 {[%clk 0:01:21]} 44. Rb1 {[%clk 0:00:33]}  g5 {[%clk 0:01:20]} 45. Kg4 {[%clk 0:00:32]}  Bh5+ {[%clk 0:01:19]} 0-1


[Site "https://www.chess.com"]

[Event "Titled Tuesday Blitz November 22 Late 2022"]
[White "Lopez Mulet, Inigo"]
[Black "Boruchovsky, Avital"]
[WhiteFideId "22235620"]
[BlackFideId "2800055"]
[WhiteElo "2289"]
[BlackElo "2458"]
[Result "0-1"]
[Round "01"]
[TimeControl "180+1"]
[Date "2022.11.23"]
[WhiteClock "0:01:26"]
[BlackClock "0:01:58"]

1. d4 {[%clk 0:02:57]}  Nf6 {[%clk 0:02:58]} 2. c4 {[%clk 0:02:57]}  g6 {[%clk 0:02:58]} 3. f3 {[%clk 0:02:52]}  c5 {[%clk 0:02:54]} 4. d5 {[%clk 0:02:52]}  b6 {[%clk 0:02:53]} 5. Nc3 {[%clk 0:02:48]}  Bg7 {[%clk 0:02:53]} 6. e4 {[%clk 0:02:48]}  O-O {[%clk 0:02:53]} 7. h4 {[%clk 0:02:47]}  d6 {[%clk 0:02:50]} 8. g4 {[%clk 0:02:46]}  e6 {[%clk 0:02:47]} 9. h5 {[%clk 0:02:45]}  exd5 {[%clk 0:02:47]} 10. cxd5 {[%clk 0:02:46]}  Ba6 {[%clk 0:02:45]} 11. hxg6 {[%clk 0:02:44]}  fxg6 {[%clk 0:02:41]} 12. Bxa6 {[%clk 0:02:40]}  Nxa6 {[%clk 0:02:41]} 13. Nge2 {[%clk 0:02:39]}  Nc7 {[%clk 0:02:39]} 14. Bg5 {[%clk 0:02:39]}  Qe8 {[%clk 0:02:35]} 15. Qd2 {[%clk 0:02:38]}  Nd7 {[%clk 0:02:34]} 16. f4 {[%clk 0:02:32]}  Nf6 {[%clk 0:02:34]} 17. Bxf6 {[%clk 0:02:27]}  Rxf6 {[%clk 0:02:32]} 18. f5 {[%clk 0:02:22]}  b5 {[%clk 0:02:29]} 19. g5 {[%clk 0:02:21]}  Rf7 {[%clk 0:02:25]} 20. f6 {[%clk 0:02:22]}  Bf8 {[%clk 0:02:23]} 21. Ng3 {[%clk 0:02:21]}  b4 {[%clk 0:02:21]} 22. Nce2 {[%clk 0:02:21]}  Qe5 {[%clk 0:02:14]} 23. O-O-O {[%clk 0:02:18]}  a5 {[%clk 0:02:14]} 24. Qf4 {[%clk 0:02:16]}  Re8 {[%clk 0:02:14]} 25. Qxe5 {[%clk 0:02:02]}  Rxe5 {[%clk 0:02:15]} 26. Nf4 {[%clk 0:02:00]}  Rxg5 {[%clk 0:02:12]} 27. Rhg1 {[%clk 0:01:45]}  Bh6 {[%clk 0:02:03]} 28. Kc2 {[%clk 0:01:33]}  Rxg3 {[%clk 0:02:01]} 29. Ne6 {[%clk 0:01:25]}  Rxg1 {[%clk 0:01:59]} 30. Rxg1 {[%clk 0:01:25]}  Nxe6 {[%clk 0:01:58]} 31. dxe6 {[%clk 0:01:26]}  Rxf6 {[%clk 0:01:58]} 0-1


[Site "https://www.chess.com"]

[Event "Titled Tuesday Blitz November 22 Late 2022"]
[White "Martinez Alcantara, Jose Eduardo"]
[Black "Ribeiro, Matheus Mendes Domingues"]
[WhiteFideId "3805662"]
[BlackFideId "324226923"]
[WhiteElo "2705"]
[BlackElo "2098"]
[Result "1-0"]
[Round "01"]
[TimeControl "180+1"]
[Date "2022.11.22"]
[WhiteClock "0:01:15"]
[BlackClock "0:00:02"]

1. e4 {[%clk 0:02:59]}  c5 {[%clk 0:02:59]} 2. Nf3 {[%clk 0:02:57]}  e6 {[%clk 0:02:57]} 3. c3 {[%clk 0:02:57]}  Nc6 {[%clk 0:02:56]} 4. d4 {[%clk 0:02:57]}  cxd4 {[%clk 0:02:55]} 5. cxd4 {[%clk 0:02:58]}  d5 {[%clk 0:02:56]} 6. e5 {[%clk 0:02:57]}  Nge7 {[%clk 0:02:57]} 7. Nc3 {[%clk 0:02:56]}  Nf5 {[%clk 0:02:56]} 8. Bb5 {[%clk 0:02:45]}  a6 {[%clk 0:02:37]} 9. Ba4 {[%clk 0:02:36]}  Bd7 {[%clk 0:02:37]} 10. O-O {[%clk 0:02:36]}  Be7 {[%clk 0:02:29]} 11. Bc2 {[%clk 0:02:36]}  g6 {[%clk 0:01:59]} 12. a3 {[%clk 0:02:36]}  h5 {[%clk 0:01:57]} 13. g3 {[%clk 0:02:34]}  Qc7 {[%clk 0:01:50]} 14. Bxf5 {[%clk 0:02:31]}  gxf5 {[%clk 0:01:50]} 15. Bg5 {[%clk 0:02:32]}  Bxg5 {[%clk 0:01:34]} 16. Nxg5 {[%clk 0:02:33]}  Qb6 {[%clk 0:01:35]} 17. Ne2 {[%clk 0:02:32]}  h4 {[%clk 0:01:25]} 18. b4 {[%clk 0:02:30]}  hxg3 {[%clk 0:01:25]} 19. hxg3 {[%clk 0:02:31]}  a5 {[%clk 0:00:51]} 20. Rb1 {[%clk 0:02:27]}  axb4 {[%clk 0:00:51]} 21. axb4 {[%clk 0:02:28]}  Ra2 {[%clk 0:00:43]} 22. b5 {[%clk 0:02:28]}  Na5 {[%clk 0:00:42]} 23. Nc3 {[%clk 0:02:14]}  Ra3 {[%clk 0:00:42]} 24. Na4 {[%clk 0:02:12]}  Qd8 {[%clk 0:00:42]} 25. Nf3 {[%clk 0:02:07]}  Nc4 {[%clk 0:00:23]} 26. Nc5 {[%clk 0:02:04]}  b6 {[%clk 0:00:23]} 27. Nd3 {[%clk 0:02:01]}  Qe7 {[%clk 0:00:16]} 28. Kg2 {[%clk 0:02:01]}  Ra2 {[%clk 0:00:11]} 29. Qe1 {[%clk 0:02:01]}  Qa3 {[%clk 0:00:10]} 30. Rd1 {[%clk 0:01:31]}  Bxb5 {[%clk 0:00:10]} 31. Rg1 {[%clk 0:01:31]}  Nb2 {[%clk 0:00:07]} 32. Nxb2 {[%clk 0:01:31]}  Qxb2 {[%clk 0:00:08]} 33. Rd2 {[%clk 0:01:31]}  Qa3 {[%clk 0:00:08]} 34. Rxa2 {[%clk 0:01:28]}  Qxa2 {[%clk 0:00:09]} 35. Qb4 {[%clk 0:01:26]}  Qc4 {[%clk 0:00:09]} 36. Qd6 {[%clk 0:01:25]}  Bd7 {[%clk 0:00:05]} 37. Qb8+ {[%clk 0:01:24]}  Qc8 {[%clk 0:00:05]} 38. Qxb6 {[%clk 0:01:24]}  Qc6 {[%clk 0:00:06]} 39. Qb8+ {[%clk 0:01:24]}  Qc8 {[%clk 0:00:06]} 40. Qb2 {[%clk 0:01:25]}  O-O {[%clk 0:00:05]} 41. Qd2 {[%clk 0:01:24]}  f6 {[%clk 0:00:03]} 42. Qh6 {[%clk 0:01:24]}  fxe5 {[%clk 0:00:03]} 43. Rh1 {[%clk 0:01:24]}  Kf7 {[%clk 0:00:02]} 44. Nxe5+ {[%clk 0:01:24]}  Ke7 {[%clk 0:00:02]} 45. Qg7+ {[%clk 0:01:25]}  Kd6 {[%clk 0:00:02]} 46. Rc1 {[%clk 0:01:21]}  Rg8 {[%clk 0:00:02]} 47. Qf7 {[%clk 0:01:16]}  Qxc1 {[%clk 0:00:02]} 48. Qxd7# {[%clk 0:01:15]} 1-0


[Site "https://www.chess.com"]

[Event "Titled Tuesday Blitz November 22 Late 2022"]
[White "Novikova, Galina"]
[Black "Papasimakopoulos, Alexandros"]
[WhiteFideId "4157095"]
[BlackFideId "4244125"]
[WhiteElo "1973"]
[BlackElo "2365"]
[Result "0-1"]
[Round "01"]
[TimeControl "180+1"]
[Date "2022.11.23"]
[WhiteClock "0:01:52"]
[BlackClock "0:01:51"]

1. e4 {[%clk 0:02:59]}  e6 {[%clk 0:02:57]} 2. Nf3 {[%clk 0:02:58]}  d5 {[%clk 0:02:57]} 3. e5 {[%clk 0:02:59]}  c5 {[%clk 0:02:57]} 4. b4 {[%clk 0:02:59]}  c4 {[%clk 0:02:57]} 5. c3 {[%clk 0:02:59]}  a5 {[%clk 0:02:55]} 6. b5 {[%clk 0:02:59]}  Nd7 {[%clk 0:02:39]} 7. d3 {[%clk 0:02:56]}  cxd3 {[%clk 0:02:34]} 8. Bxd3 {[%clk 0:02:57]}  Ne7 {[%clk 0:02:31]} 9. O-O {[%clk 0:02:56]}  Ng6 {[%clk 0:02:29]} 10. Re1 {[%clk 0:02:49]}  b6 {[%clk 0:02:29]} 11. Bc2 {[%clk 0:02:42]}  Bb7 {[%clk 0:02:27]} 12. Nbd2 {[%clk 0:02:41]}  Qc7 {[%clk 0:02:27]} 13. Qe2 {[%clk 0:02:36]}  Qxc3 {[%clk 0:02:19]} 14. Nb3 {[%clk 0:02:34]}  Rc8 {[%clk 0:02:12]} 15. Bxg6 {[%clk 0:02:30]}  hxg6 {[%clk 0:02:10]} 16. Bf4 {[%clk 0:02:28]}  Qc4 {[%clk 0:02:09]} 17. Bg3 {[%clk 0:02:26]}  Qxe2 {[%clk 0:02:08]} 18. Rxe2 {[%clk 0:02:27]}  Nc5 {[%clk 0:01:59]} 19. Nbd4 {[%clk 0:02:26]}  Ne4 {[%clk 0:01:58]} 20. Bf4 {[%clk 0:02:24]}  Ba3 {[%clk 0:01:58]} 21. h3 {[%clk 0:02:22]}  Kd7 {[%clk 0:01:56]} 22. Ng5 {[%clk 0:02:06]}  Nxg5 {[%clk 0:01:55]} 23. Bxg5 {[%clk 0:02:07]}  Rc4 {[%clk 0:01:55]} 24. Rd1 {[%clk 0:02:07]}  Rhc8 {[%clk 0:01:55]} 25. Re3 {[%clk 0:01:53]}  Rc1 {[%clk 0:01:51]} 26. Rxc1 {[%clk 0:01:51]}  Bxc1 {[%clk 0:01:51]} 27. Kh2 {[%clk 0:01:52]}  Bxe3 {[%clk 0:01:51]} 0-1


[Site "https://www.chess.com"]

[Event "Titled Tuesday Blitz November 22 Late 2022"]
[White "Oparin, Grigoriy"]
[Black "Zhang, Derek"]
[WhiteFideId "24125890"]
[BlackFideId "2087871"]
[WhiteElo "2639"]
[BlackElo "2087"]
[Result "1/2-1/2"]
[Round "01"]
[TimeControl "180+1"]
[Date "2022.11.22"]
[WhiteClock "0:00:23"]
[BlackClock "0:00:20"]

1. Nf3 {[%clk 0:03:00]}  d6 {[%clk 0:02:57]} 2. g3 {[%clk 0:03:01]}  e5 {[%clk 0:02:57]} 3. d3 {[%clk 0:03:02]}  f5 {[%clk 0:02:58]} 4. c4 {[%clk 0:03:02]}  Nf6 {[%clk 0:02:59]} 5. Nc3 {[%clk 0:03:03]}  g6 {[%clk 0:02:57]} 6. Bg2 {[%clk 0:03:03]}  Bg7 {[%clk 0:02:57]} 7. O-O {[%clk 0:03:04]}  O-O {[%clk 0:02:58]} 8. Rb1 {[%clk 0:03:04]}  a5 {[%clk 0:02:55]} 9. a3 {[%clk 0:03:04]}  c6 {[%clk 0:02:55]} 10. b4 {[%clk 0:03:04]}  axb4 {[%clk 0:02:56]} 11. axb4 {[%clk 0:03:05]}  Qc7 {[%clk 0:02:56]} 12. Bg5 {[%clk 0:03:05]}  Be6 {[%clk 0:02:55]} 13. b5 {[%clk 0:03:05]}  Nbd7 {[%clk 0:02:55]} 14. Qc2 {[%clk 0:03:02]}  Kh8 {[%clk 0:02:51]} 15. Rfc1 {[%clk 0:02:58]}  d5 {[%clk 0:02:43]} 16. Bxf6 {[%clk 0:02:36]}  Bxf6 {[%clk 0:02:32]} 17. bxc6 {[%clk 0:02:35]}  bxc6 {[%clk 0:02:31]} 18. cxd5 {[%clk 0:02:35]}  cxd5 {[%clk 0:02:29]} 19. Nb5 {[%clk 0:02:35]}  Qxc2 {[%clk 0:02:27]} 20. Rxc2 {[%clk 0:02:36]}  Rab8 {[%clk 0:02:10]} 21. Nd2 {[%clk 0:02:31]}  Rfc8 {[%clk 0:02:03]} 22. Rxc8+ {[%clk 0:02:18]}  Rxc8 {[%clk 0:02:02]} 23. e3 {[%clk 0:02:18]}  Rb8 {[%clk 0:01:46]} 24. Nc7 {[%clk 0:02:15]}  Rxb1+ {[%clk 0:01:15]} 25. Nxb1 {[%clk 0:02:16]}  Nc5 {[%clk 0:01:15]} 26. Bxd5 {[%clk 0:02:11]}  Bxd5 {[%clk 0:01:11]} 27. Nxd5 {[%clk 0:02:12]}  Kg7 {[%clk 0:01:11]} 28. Nb4 {[%clk 0:02:10]}  Bd8 {[%clk 0:00:58]} 29. Kf1 {[%clk 0:02:04]}  Ba5 {[%clk 0:00:58]} 30. Nc6 {[%clk 0:02:04]}  Bc7 {[%clk 0:00:50]} 31. Ke2 {[%clk 0:02:04]}  Kf6 {[%clk 0:00:49]} 32. Nd2 {[%clk 0:02:03]}  Ke6 {[%clk 0:00:48]} 33. e4 {[%clk 0:02:03]}  Kd6 {[%clk 0:00:42]} 34. Nb4 {[%clk 0:02:02]}  Ke6 {[%clk 0:00:34]} 35. Nc6 {[%clk 0:01:33]}  Kd6 {[%clk 0:00:33]} 36. Nb4 {[%clk 0:01:25]}  Ke6 {[%clk 0:00:33]} 37. Nc2 {[%clk 0:01:23]}  Kf6 {[%clk 0:00:28]} 38. Ne3 {[%clk 0:01:22]}  Bd8 {[%clk 0:00:19]} 39. f3 {[%clk 0:01:22]}  Ne6 {[%clk 0:00:19]} 40. Nd5+ {[%clk 0:01:21]}  Kf7 {[%clk 0:00:19]} 41. Nc4 {[%clk 0:01:19]}  Nd4+ {[%clk 0:00:19]} 42. Kf2 {[%clk 0:01:20]}  Ke6 {[%clk 0:00:20]} 43. Nc3 {[%clk 0:01:15]}  Nc6 {[%clk 0:00:19]} 44. Na4 {[%clk 0:01:12]}  Be7 {[%clk 0:00:20]} 45. h3 {[%clk 0:01:08]}  Nb4 {[%clk 0:00:20]} 46. Ke2 {[%clk 0:01:08]}  Nc6 {[%clk 0:00:20]} 47. Nc3 {[%clk 0:01:07]}  Nd4+ {[%clk 0:00:20]} 48. Kf2 {[%clk 0:01:07]}  Nc6 {[%clk 0:00:21]} 49. g4 {[%clk 0:01:05]}  Bc5+ {[%clk 0:00:21]} 50. Kg2 {[%clk 0:01:05]}  Nb4 {[%clk 0:00:22]} 51. Nb2 {[%clk 0:00:35]}  Bd4 {[%clk 0:00:21]} 52. Ncd1 {[%clk 0:00:35]}  fxg4 {[%clk 0:00:20]} 53. fxg4 {[%clk 0:00:34]}  Kd6 {[%clk 0:00:21]} 54. Kf3 {[%clk 0:00:34]}  Kc5 {[%clk 0:00:21]} 55. Ke2 {[%clk 0:00:34]}  Bxb2 {[%clk 0:00:20]} 56. Nxb2 {[%clk 0:00:35]}  Kd4 {[%clk 0:00:21]} 57. Kd2 {[%clk 0:00:36]}  g5 {[%clk 0:00:20]} 58. Ke2 {[%clk 0:00:35]}  Kc3 {[%clk 0:00:20]} 59. Nd1+ {[%clk 0:00:35]}  Kd4 {[%clk 0:00:20]} 60. Nf2 {[%clk 0:00:35]}  Kc3 {[%clk 0:00:18]} 61. Ke3 {[%clk 0:00:35]}  Nc2+ {[%clk 0:00:18]} 62. Kf3 {[%clk 0:00:35]}  Nb4 {[%clk 0:00:18]} 63. Ke2 {[%clk 0:00:34]}  Kd4 {[%clk 0:00:17]} 64. Kd2 {[%clk 0:00:34]}  Nc6 {[%clk 0:00:17]} 65. Nd1 {[%clk 0:00:31]}  Nb4 {[%clk 0:00:17]} 66. Nb2 {[%clk 0:00:31]}  Nc6 {[%clk 0:00:17]} 67. Ke2 {[%clk 0:00:20]}  Nb4 {[%clk 0:00:18]} 68. Kd2 {[%clk 0:00:20]}  Nc6 {[%clk 0:00:18]} 69. Ke1 {[%clk 0:00:20]}  Kc3 {[%clk 0:00:17]} 70. Nd1+ {[%clk 0:00:19]}  Kxd3 {[%clk 0:00:18]} 71. Kf2 {[%clk 0:00:19]}  Kxe4 {[%clk 0:00:18]} 72. Ne3 {[%clk 0:00:20]}  Nd4 {[%clk 0:00:17]} 73. Nc4 {[%clk 0:00:20]}  Kf4 {[%clk 0:00:16]} 74. Ne3 {[%clk 0:00:20]}  e4 {[%clk 0:00:16]} 75. Nd5+ {[%clk 0:00:21]}  Ke5 {[%clk 0:00:17]} 76. Ne3 {[%clk 0:00:21]}  Ne6 {[%clk 0:00:17]} 77. Kg3 {[%clk 0:00:21]}  Nf4 {[%clk 0:00:18]} 78. h4 {[%clk 0:00:20]}  h6 {[%clk 0:00:17]} 79. hxg5 {[%clk 0:00:20]}  hxg5 {[%clk 0:00:18]} 80. Kf2 {[%clk 0:00:21]}  Nd5 {[%clk 0:00:18]} 81. Ng2 {[%clk 0:00:20]}  Kd4 {[%clk 0:00:18]} 82. Ke2 {[%clk 0:00:21]}  e3 {[%clk 0:00:18]} 83. Kf3 {[%clk 0:00:20]}  Kd3 {[%clk 0:00:18]} 84. Ne1+ {[%clk 0:00:20]}  Kd2 {[%clk 0:00:19]} 85. Ng2 {[%clk 0:00:19]}  e2 {[%clk 0:00:19]} 86. Kf2 {[%clk 0:00:18]}  Nf4 {[%clk 0:00:19]} 87. Ne1 {[%clk 0:00:19]}  Nd3+ {[%clk 0:00:19]} 88. Nxd3 {[%clk 0:00:19]}  Kxd3 {[%clk 0:00:20]} 89. Ke1 {[%clk 0:00:19]}  Ke4 {[%clk 0:00:18]} 90. Kxe2 {[%clk 0:00:20]}  Kf4 {[%clk 0:00:19]} 91. Kf1 {[%clk 0:00:21]}  Kf3 {[%clk 0:00:18]} 92. Kg1 {[%clk 0:00:21]}  Kg3 {[%clk 0:00:18]} 93. Kh1 {[%clk 0:00:21]}  Kxg4 {[%clk 0:00:19]} 94. Kg2 {[%clk 0:00:22]}  Kh4 {[%clk 0:00:19]} 95. Kh2 {[%clk 0:00:22]}  g4 {[%clk 0:00:19]} 96. Kg2 {[%clk 0:00:22]}  g3 {[%clk 0:00:19]} 97. Kg1 {[%clk 0:00:23]}  Kh3 {[%clk 0:00:19]} 98. Kh1 {[%clk 0:00:23]}  g2+ {[%clk 0:00:20]} 99. Kg1 {[%clk 0:00:23]}  Kg3 {[%clk 0:00:20]} 1/2-1/2


[Site "https://www.chess.com"]

[Event "Titled Tuesday Blitz November 22 Late 2022"]
[White "Papp, Levente"]
[Black "Schut, Han"]
[WhiteFideId "751243"]
[BlackFideId "1005561"]
[WhiteElo "2380"]
[BlackElo "2024"]
[Result "1-0"]
[Round "01"]
[TimeControl "180+1"]
[Date "2022.11.23"]
[WhiteClock "0:00:41"]
[BlackClock "0:00:16"]

1. d4 {[%clk 0:03:00]}  Nf6 {[%clk 0:02:58]} 2. Nc3 {[%clk 0:03:01]}  d5 {[%clk 0:02:58]} 3. Bg5 {[%clk 0:03:00]}  e6 {[%clk 0:02:58]} 4. Qd2 {[%clk 0:02:59]}  Bb4 {[%clk 0:02:56]} 5. f3 {[%clk 0:02:58]}  c5 {[%clk 0:02:55]} 6. O-O-O {[%clk 0:02:52]}  cxd4 {[%clk 0:02:51]} 7. Qxd4 {[%clk 0:02:49]}  Nc6 {[%clk 0:02:51]} 8. Qd3 {[%clk 0:02:47]}  d4 {[%clk 0:02:37]} 9. Ne4 {[%clk 0:02:27]}  Qa5 {[%clk 0:02:26]} 10. a3 {[%clk 0:02:21]}  Nxe4 {[%clk 0:02:23]} 11. Qxe4 {[%clk 0:02:14]}  Qxg5+ {[%clk 0:02:20]} 12. f4 {[%clk 0:02:14]}  Qe7 {[%clk 0:02:11]} 13. axb4 {[%clk 0:02:14]}  Qxb4 {[%clk 0:02:11]} 14. Nf3 {[%clk 0:02:12]}  Qa5 {[%clk 0:02:05]} 15. Nxd4 {[%clk 0:02:01]}  Nxd4 {[%clk 0:01:24]} 16. Qxd4 {[%clk 0:02:00]}  O-O {[%clk 0:01:23]} 17. Kb1 {[%clk 0:01:56]}  b6 {[%clk 0:01:18]} 18. e3 {[%clk 0:01:45]}  Bb7 {[%clk 0:01:14]} 19. Bc4 {[%clk 0:01:33]}  g6 {[%clk 0:01:10]} 20. Rhg1 {[%clk 0:01:28]}  Rfd8 {[%clk 0:01:02]} 21. Qxd8+ {[%clk 0:01:23]}  Rxd8 {[%clk 0:01:01]} 22. Rxd8+ {[%clk 0:01:23]}  Kg7 {[%clk 0:01:02]} 23. Bb3 {[%clk 0:01:13]}  Be4 {[%clk 0:00:56]} 24. Rd4 {[%clk 0:01:08]}  Bc6 {[%clk 0:00:45]} 25. g4 {[%clk 0:01:00]}  b5 {[%clk 0:00:30]} 26. f5 {[%clk 0:00:52]}  exf5 {[%clk 0:00:29]} 27. gxf5 {[%clk 0:00:52]}  b4 {[%clk 0:00:26]} 28. Rd6 {[%clk 0:00:47]}  Qc5 {[%clk 0:00:24]} 29. f6+ {[%clk 0:00:46]}  Kh6 {[%clk 0:00:23]} 30. Rd4 {[%clk 0:00:46]}  g5 {[%clk 0:00:20]} 31. Bxf7 {[%clk 0:00:41]}  a5 {[%clk 0:00:16]} 32. h4 {[%clk 0:00:41]} 1-0


[Site "https://www.chess.com"]